[Event "HUN-chT Youth 2019"]
[Site "Budapest"]
[Date "2019.10.27"]
[Round "2.8"]
[White "Bodrogi, Bendeguz"]
[Black "Foldes, Marton Gabor"]
[Result "1-0"]
[ECO "A20"]
[WhiteElo "1903"]
[BlackElo "1755"]
[Annotator "NA RC"]
[PlyCount "97"]
[EventDate "2019.10.26"]
[EventType "team-tourn"]
[EventCountry "HUN"]
[SourceTitle "playchess.com"]
[Source "ChessBase"]
[SourceQuality "1"]
[TimeControl "5400+30"]

1. c4 {[%emt 0:00:00]} e5 {[%emt 0:00:00]} 2. g3 {[%emt 0:00:34]} Nc6 {[%emt 0:00:08]} 3. Nc3 {[%emt 0:00:43]} f5 {[%emt 0:00:31]} 4. Bg2 {[%emt 0:01:01]} Nf6 {[%emt 0:00:16]} 5. e3 {[%emt 0:00:35]} Bc5 {[%emt 0:00:35]} 6. Nge2 {[%emt 0:00:53]} d6 {[%emt 0:01:30]} 7. O-O {[%emt 0:01:15]} O-O {[%emt 0:00:39]} 8. d4 {[%emt 0:00:45]} Bb6 {[%emt 0:01:10]} 9. b3 {[%emt 0:01:09]} Qe8 {[%emt 0:01:08]} 10. Bb2 {[%emt 0:01:05]} Qh5 {[%emt 0:03:47]} 11. Nd5 {[%emt 0:04:44]} Qe8 {[%emt 0:24:51]} 12. Rc1 {[%emt 0:03:43]} Nxd5 {[%emt 0:17:09]} 13. cxd5 {[%emt 0:01:54]} Nd8 {[%emt 0:01:15]} 14. dxe5 {[%emt 0:09:04]} dxe5 {[%emt 0:00:56]} 15. Qc2 {[%emt 0:04:43]} Qe7 {[%emt 0:11:21]} 16. Qc3 {[%emt 0:03:16]} Re8 {[%emt 0:01:15]} 17. Rfd1 {[%emt 0:01:37]} Bd7 {[%emt 0:06:50]} 18. Kh1 {[%emt 0:06:24]} a5 {[%emt 0:08:26]} 19. Ng1 {[%emt 0:04:20]} Qb4 {[%emt 0:09:35]} 20. Nf3 {[%emt 0:01:53]} Qxc3 {[%emt 0:01:10]} 21. Bxc3 {[%emt 0:00:33]} Nf7 {[%emt 0:00:47]} 22. Bb2 {[%emt 0:02:00]} a4 {[%emt 0:01:22]} 23. b4 {[%emt 0:00:37]} e4 {[%emt 0:02:08]} 24. Nd4 {[%emt 0:01:09]} Ne5 {[%emt 0:00:22]} 25. Bf1 {[%emt 0:00:17]} Nf7 {[%emt 0:02:55]} 26. a3 {[%emt 0:00:43]} Nd6 {[%emt 0:00:17]} 27. h4 {[%emt 0:00:30]} Kf7 {[%emt 0:00:41]} 28. Bc4 {[%emt 0:03:00]} Kg6 {[%emt 0:01:13]} 29. Ba2 {[%emt 0:00:24]} h6 {[%emt 0:00:39]} 30. Ne6 {[%emt 0:00:15]} Bxe6 {[%emt 0:00:44]} 31. dxe6 {[%emt 0:00:09]} Re7 {[%emt 0:00:18]} 32. Be5 {[%emt 0:00:23]} Rd8 {[%emt 0:00:43]} 33. Kg2 {[%emt 0:01:24]} Ba7 {[%emt 0:00:47]} 34. Rc2 {[%emt 0:03:05]} Bb8 {[%emt 0:00:22]} 35. Rcd2 {[%emt 0:00:06]} Kh7 {[%emt 0:00:38]} 36. b5 {[%emt 0:00:42]} b6 {[%emt 0:00:30]} 37. Rd4 {[%emt 0:02:41]} Rc8 {[%emt 0:00:32]} 38. Rb1 {[%emt 0:05:23]} Nb7 {[%emt 0:00:34]} 39. Rd7 {[%emt 0:01:52]} Rce8 {[%emt 0:00:08]} 40. Bc3 {[%emt 0:01:59]} Nc5 {[%emt 0:00:56]} 41. Rxe7 {[%emt 0:00:17]} Rxe7 {[%emt 0:00:01]} 42. Bb4 {[%emt 0:00:03]} Re8 {[%emt 0:00:37]} 43. Bxc5 {[%emt 0:03:15]} bxc5 {[%emt 0:00:01]} 44. Rd1 {[%emt 0:00:16]} Kg6 {[%emt 0:00:36]} 45. Rd7 {[%emt 0:00:46]} Kf6 {[%emt 0:00:33]} 46. Rf7+ {[%emt 0:00:33]} Kg6 {[%emt 0:00:13]} 47. h5+ {[%emt 0:00:23]} Kxh5 {[%emt 0:00:58]} 48. Rxg7 {[%emt 0:00:19]} Rd8 {[%emt 0:00:52]} 49. e7 {[%emt 0:00:11]} 1-0

[Event "HUN-chT Youth 2019"]
[Site "Budapest"]
[Date "2019.10.27"]
[Round "2.9"]
[White "Monduk, Ferenc"]
[Black "Barasits, Balint"]
[Result "1-0"]
[ECO "E91"]
[WhiteElo "1987"]
[BlackElo "1988"]
[Annotator "NA RC"]
[PlyCount "28"]
[EventDate "2019.10.26"]
[EventType "team-tourn"]
[EventCountry "HUN"]
[SourceTitle "playchess.com"]
[Source "ChessBase"]
[SourceQuality "1"]
[TimeControl "5400+30"]

1. d4 {[%emt 0:00:00]} Nf6 {[%emt 0:00:00]} 2. c4 {[%emt 0:00:00]} d6 {[%emt 0:00:07]} 3. Nc3 {[%emt 0:00:00]} g6 {[%emt 0:00:51]} 4. Nf3 {[%emt 0:00:01]} Bg7 {[%emt 0:00:08]} 5. e4 {[%emt 0:00:09]} O-O {[%emt 0:02:01]} 6. Be2 {[%emt 0:00:09]} c5 {[%emt 0:00:26]} 7. O-O {[%emt 0:02:09]} cxd4 {[%emt 0:01:37]} 8. Nxd4 {[%emt 0:00:07]} Nc6 {[%emt 0:00:03]} 9. Nf3 {[%emt 0:02:28]} Bd7 {[%emt 0:01:19]} 10. h3 {[%emt 0:02:49]} Qa5 11. Bd2 {[%emt 0:05:21]} Rfc8 {[%emt 0:13:47]} 12. a3 {[%emt 0:10:00]} Qb6 {[%emt 0:03:39]} 13. Be3 {[%emt 0:02:44]} Qd8 {[%emt 0:06:50]} 14. Qc2 {[%emt 0:02:04]} Na5 {[%emt 0:10:44]} 1-0

[Event "HUN-chT Youth 2019"]
[Site "Budapest"]
[Date "2019.10.27"]
[Round "2.9"]
[White "Csernyik, Mark"]
[Black "Onodi, Miklos"]
[Result "1-0"]
[ECO "B21"]
[WhiteElo "1749"]
[BlackElo "1548"]
[Annotator "NA RC"]
[PlyCount "91"]
[EventDate "2019.10.26"]
[EventType "team-tourn"]
[EventCountry "HUN"]
[SourceTitle "playchess.com"]
[Source "ChessBase"]
[SourceQuality "1"]
[TimeControl "5400+30"]

1. e4 {[%emt 0:00:00]} c5 {[%emt 0:00:00]} 2. d4 {[%emt 0:00:00]} cxd4 {[%emt 0:00:00]} 3. c3 {[%emt 0:00:00]} dxc3 {[%emt 0:00:00]} 4. Nxc3 {[%emt 0:00:00]} a6 {[%emt 0:00:02]} 5. Nf3 {[%emt 0:00:08]} Nc6 {[%emt 0:00:10]} 6. Bc4 {[%emt 0:00:35]} e6 {[%emt 0:00:14]} 7. O-O {[%emt 0:00:11]} b5 {[%emt 0:00:28]} 8. Bb3 {[%emt 0:00:12]} Bb7 {[%emt 0:00:13]} 9. Qe2 {[%emt 0:00:37]} Nge7 {[%emt 0:01:56]} 10. Rd1 {[%emt 0:00:39]} Ng6 {[%emt 0:00:42]} 11. Bg5 {[%emt 0:03:09]} f6 {[%emt 0:01:39]} 12. Bxe6 {[%emt 0:01:34]} fxg5 {[%emt 0:06:41]} 13. Rxd7 {[%emt 0:05:50]} Qxd7 {[%emt 0:07:17]} 14. Bxd7+ {[%emt 0:00:09]} Kxd7 {[%emt 0:00:08]} 15. Rd1+ {[%emt 0:01:34]} Ke8 {[%emt 0:01:50]} 16. Nxg5 {[%emt 0:01:29]} Be7 {[%emt 0:02:02]} 17. Ne6 {[%emt 0:01:13]} Kf7 {[%emt 0:03:56]} 18. Qf3+ {[%emt 0:01:35]} Bf6 {[%emt 0:05:45]} 19. Rd7+ {[%emt 0:00:18]} Nce7 {[%emt 0:01:04]} 20. Rxb7 {[%emt 0:05:08]} Kxe6 {[%emt 0:00:49]} 21. Nd5 {[%emt 0:01:12]} Rac8 {[%emt 0:06:46]} 22. g3 {[%emt 0:03:09]} Rc1+ {[%emt 0:02:57]} 23. Kg2 {[%emt 0:00:12]} Rf8 {[%emt 0:02:58]} 24. Qb3 {[%emt 0:07:39]} Kd6 {[%emt 0:13:54]} 25. Qa3+ {[%emt 0:01:19]} Rc5 {[%emt 0:05:43]} 26. Nb6 {[%emt 0:03:58]} Rd8 {[%emt 0:08:07]} 27. Rd7+ {[%emt 0:01:19]} Rxd7 {[%emt 0:00:33]} 28. Nxd7 {[%emt 0:00:12]} Bd4 {[%emt 0:01:20]} 29. Nxc5 {[%emt 0:00:15]} Bxc5 {[%emt 0:00:14]} 30. Qxa6+ {[%emt 0:00:10]} Nc6 {[%emt 0:00:22]} 31. Qxb5 {[%emt 0:01:04]} Nge7 {[%emt 0:02:12]} 32. f4 {[%emt 0:01:02]} Bd4 {[%emt 0:02:41]} 33. b3 {[%emt 0:02:20]} g6 {[%emt 0:03:22]} 34. Qc4 {[%emt 0:01:32]} Bb6 {[%emt 0:04:04]} 35. b4 {[%emt 0:00:35]} h5 {[%emt 0:01:07]} 36. e5+ {[%emt 0:00:30]} Kd7 {[%emt 0:00:47]} 37. a4 {[%emt 0:00:37]} Nf5 {[%emt 0:00:29]} 38. Qf7+ {[%emt 0:00:48]} Nfe7 {[%emt 0:00:41]} 39. a5 {[%emt 0:00:27]} Ba7 {[%emt 0:02:27]} 40. Qb3 {[%emt 0:01:07]} Kc7 {[%emt 0:01:37]} 41. b5 {[%emt 0:01:17]} Nd4 {[%emt 0:01:06]} 42. b6+ {[%emt 0:00:32]} Kb7 {[%emt 0:01:35]} 43. a6+ {[%emt 0:00:45]} Ka8 {[%emt 0:02:04]} 44. Qf7 {[%emt 0:00:54]} Ndc6 {[%emt 0:01:48]} 45. Qe8+ {[%emt 0:01:26]} Nb8 {[%emt 0:05:25]} 46. b7# {[%emt 0:00:10]} 1-0

[Event "HUN-chT Youth 2019"]
[Site "Budapest"]
[Date "2019.10.27"]
[Round "2.10"]
[White "Kiraly, Barnabas"]
[Black "Lengyel, Andrea"]
[Result "1-0"]
[ECO "B30"]
[WhiteElo "1742"]
[BlackElo "1872"]
[Annotator "NA"]
[PlyCount "98"]
[EventDate "2019.10.26"]
[EventType "team-tourn"]
[EventCountry "HUN"]
[SourceTitle "playchess.com"]
[Source "ChessBase"]
[SourceQuality "1"]
[TimeControl "5400+30"]

1. e4 {[%emt 0:00:00]} c5 {[%emt 0:00:00]} 2. Nf3 {[%emt 0:00:00]} Nc6 {[%emt 0:00:00]} 3. Bb5 {[%emt 0:00:22]} d6 {[%emt 0:02:40]} 4. O-O {[%emt 0:01:02]} Bg4 {[%emt 0:01:06]} 5. h3 {[%emt 0:00:44]} Bh5 {[%emt 0:00:05]} 6. d3 {[%emt 0:01:13]} e6 {[%emt 0:02:08]} 7. Bxc6+ {[%emt 0:00:05]} bxc6 {[%emt 0:00:08]} 8. c3 {[%emt 0:01:46]} Nf6 {[%emt 0:05:33]} 9. Bg5 {[%emt 0:03:42]} Be7 {[%emt 0:00:11]} 10. Nbd2 {[%emt 0:00:31]} O-O {[%emt 0:02:57]} 11. Qc2 {[%emt 0:01:11]} h6 {[%emt 0:02:35]} 12. Bh4 {[%emt 0:00:46]} Bg6 {[%emt 0:00:12]} 13. Rad1 {[%emt 0:01:09]} Nh5 {[%emt 0:04:19]} 14. Bxe7 {[%emt 0:00:38]} Qxe7 {[%emt 0:01:30]} 15. Rfe1 {[%emt 0:02:26]} Nf4 {[%emt 0:06:43]} 16. Nc4 {[%emt 0:02:13]} Bh5 {[%emt 0:02:00]} 17. Re3 {[%emt 0:07:48]} Qf6 {[%emt 0:08:17]} 18. Kh2 {[%emt 0:13:29]} e5 {[%emt 0:10:57]} 19. Rg1 {[%emt 0:01:48]} Qe6 {[%emt 0:06:27]} 20. Nh4 {[%emt 0:09:42]} Rad8 {[%emt 0:17:24]} 21. g4 {[%emt 0:17:24]} Bg6 {[%emt 0:00:19]} 22. Nf5 {[%emt 0:01:17]} f6 {[%emt 0:07:58]} 23. Na5 {[%emt 0:04:49]} Bxf5 {[%emt 0:05:35]} 24. gxf5 {[%emt 0:00:25]} Qd7 {[%emt 0:00:13]} 25. Reg3 {[%emt 0:00:33]} Rf7 {[%emt 0:00:19]} 26. Qb3 {[%emt 0:01:28]} c4 {[%emt 0:01:49]} 27. Qxc4 {[%emt 0:00:55]} d5 {[%emt 0:00:06]} 28. Qxc6 {[%emt 0:04:22]} Ne2 {[%emt 0:03:35]} 29. Qxd7 {[%emt 0:07:10]} Rdxd7 {[%emt 0:00:11]} 30. Nb3 {[%emt 0:01:33]} Nxg3 {[%emt 0:01:03]} 31. Kxg3 {[%emt 0:00:34]} dxe4 {[%emt 0:01:08]} 32. dxe4 {[%emt 0:00:09]} Rb7 {[%emt 0:01:56]} 33. Rd1 {[%emt 0:01:02]} Rfd7 {[%emt 0:00:06]} 34. Rd5 {[%emt 0:00:34]} Rxd5 {[%emt 0:00:29]} 35. exd5 {[%emt 0:00:01]} Rb5 {[%emt 0:01:03]} 36. c4 {[%emt 0:00:24]} Rb4 {[%emt 0:00:02]} 37. c5 {[%emt 0:00:09]} Kf8 {[%emt 0:00:17]} 38. Kf3 {[%emt 0:02:24]} Ke7 {[%emt 0:00:45]} 39. Ke3 {[%emt 0:00:58]} Rh4 {[%emt 0:00:37]} 40. Kd3 {[%emt 0:00:26]} h5 {[%emt 0:01:11]} 41. a3 {[%emt 0:01:06]} Rxh3+ {[%emt 0:00:49]} 42. Kc4 Rxb3 {[%emt 0:00:29]} 43. Kxb3 {[%emt 0:00:02]} h4 {[%emt 0:00:05]} 44. Kc4 {[%emt 0:00:08]} h3 {[%emt 0:00:17]} 45. d6+ {[%emt 0:00:05]} Kd7 {[%emt 0:00:21]} 46. Kd5 {[%emt 0:00:03]} h2 {[%emt 0:00:19]} 47. c6+ {[%emt 0:00:02]} Kd8 {[%emt 0:00:42]} 48. Ke6 {[%emt 0:00:16]} h1=Q {[%emt 0:00:10]} 49. c7+ {[%emt 0:00:16]} Kc8 {[%emt 0:00:07]} 1-0

[Event "HUN-chT Youth 2019"]
[Site "Budapest"]
[Date "2019.10.27"]
[Round "2.10"]
[White "Kerekes, Laszlo Fulop"]
[Black "Karacsonyi, Bank"]
[Result "1/2-1/2"]
[ECO "B50"]
[WhiteElo "1369"]
[BlackElo "1513"]
[Annotator "NA RC"]
[PlyCount "84"]
[EventDate "2019.10.26"]
[EventType "team-tourn"]
[EventCountry "HUN"]
[SourceTitle "playchess.com"]
[Source "ChessBase"]
[SourceQuality "1"]
[TimeControl "5400+30"]

1. e4 {[%emt 0:00:00]} c5 {[%emt 0:00:00]} 2. Nf3 {[%emt 0:00:00]} d6 {[%emt 0:00:09]} 3. b4 {[%emt 0:01:51]} Nf6 {[%emt 0:02:30]} 4. e5 {[%emt 0:03:26]} Nd5 {[%emt 0:13:54]} 5. bxc5 {[%emt 0:03:45]} dxc5 {[%emt 0:02:54]} 6. a3 {[%emt 0:03:36]} Nc6 {[%emt 0:02:27]} 7. Bc4 {[%emt 0:03:15]} Nb6 {[%emt 0:04:09]} 8. Ba2 {[%emt 0:01:22]} g6 {[%emt 0:02:07]} 9. O-O {[%emt 0:01:54]} Bg7 {[%emt 0:01:24]} 10. Re1 {[%emt 0:01:40]} O-O {[%emt 0:03:23]} 11. Nc3 {[%emt 0:02:03]} Bg4 {[%emt 0:01:37]} 12. h3 {[%emt 0:01:37]} Bxf3 {[%emt 0:00:58]} 13. Qxf3 {[%emt 0:00:45]} Bxe5 {[%emt 0:02:53]} 14. Rb1 {[%emt 0:04:03]} Bg7 {[%emt 0:05:23]} 15. Bd5 {[%emt 0:02:09]} Nd4 {[%emt 0:02:51]} 16. Qe4 {[%emt 0:02:02]} e6 {[%emt 0:07:14]} 17. Bxb7 {[%emt 0:01:44]} Rb8 {[%emt 0:00:16]} 18. Ba6 {[%emt 0:01:18]} Re8 {[%emt 0:02:52]} 19. Bb5 {[%emt 0:01:20]} Re7 {[%emt 0:01:26]} 20. a4 {[%emt 0:03:57]} f5 {[%emt 0:01:57]} 21. Qh4 {[%emt 0:03:47]} Nxc2 {[%emt 0:01:09]} 22. Rd1 {[%emt 0:02:01]} Bxc3 {[%emt 0:01:46]} 23. d3 {[%emt 0:04:56]} Bg7 {[%emt 0:00:46]} 24. Bg5 {[%emt 0:00:42]} Nd5 {[%emt 0:01:07]} 25. Bxe7 {[%emt 0:01:17]} Qxe7 {[%emt 0:01:32]} 26. Qxe7 {[%emt 0:01:38]} Nxe7 {[%emt 0:00:09]} 27. Bc4 {[%emt 0:01:09]} Rxb1 {[%emt 0:02:09]} 28. Bxe6+ {[%emt 0:00:44]} Kf8 {[%emt 0:00:09]} 29. Rxb1 {[%emt 0:00:19]} Be5 {[%emt 0:01:20]} 30. Kf1 {[%emt 0:03:52]} Kg7 {[%emt 0:02:00]} 31. Rb7 {[%emt 0:01:20]} Kf6 {[%emt 0:02:26]} 32. Bc4 {[%emt 0:01:26]} a5 {[%emt 0:00:41]} 33. Rb5 {[%emt 0:01:25]} Bd4 {[%emt 0:01:13]} 34. Rxa5 {[%emt 0:00:42]} Nb4 {[%emt 0:00:17]} 35. Ra8 {[%emt 0:01:44]} Nec6 {[%emt 0:00:22]} 36. a5 {[%emt 0:01:08]} Ke7 {[%emt 0:00:25]} 37. a6 {[%emt 0:00:38]} Kd7 {[%emt 0:00:08]} 38. a7 {[%emt 0:02:12]} Kc7 {[%emt 0:00:06]} 39. Rf8 {[%emt 0:00:58]} Nxa7 {[%emt 0:00:16]} 40. Rf7+ {[%emt 0:00:41]} Kb6 {[%emt 0:00:22]} 41. Rxh7 {[%emt 0:01:09]} Nac6 {[%emt 0:00:24]} 42. h4 {[%emt 0:01:22]} Ne5 {[%emt 0:00:25]} 1/2-1/2

[Event "HUN-chT Youth 2019"]
[Site "Budapest"]
[Date "2019.10.27"]
[Round "2.11"]
[White "Szabo, Balazs"]
[Black "Petroczy, Zoltan"]
[Result "0-1"]
[ECO "D55"]
[WhiteElo "2210"]
[BlackElo "1573"]
[Annotator "NA"]
[PlyCount "78"]
[EventDate "2019.10.26"]
[EventType "team-tourn"]
[EventCountry "HUN"]
[SourceTitle "playchess.com"]
[Source "ChessBase"]
[SourceQuality "1"]
[TimeControl "5400+30"]

1. d4 {[%emt 0:00:00]} Nf6 {[%emt 0:00:00]} 2. c4 {[%emt 0:00:00]} e6 {[%emt 0:00:00]} 3. Nf3 {[%emt 0:00:04]} Bb4+ {[%emt 0:01:46]} 4. Bd2 {[%emt 0:00:18]} Be7 {[%emt 0:00:43]} 5. Nc3 {[%emt 0:01:16]} d5 {[%emt 0:00:59]} 6. Bg5 {[%emt 0:03:59]} O-O {[%emt 0:02:24]} 7. e3 {[%emt 0:01:00]} c6 {[%emt 0:02:20]} 8. cxd5 {[%emt 0:00:56]} Nxd5 {[%emt 0:00:46]} 9. Bxe7 {[%emt 0:01:20]} Qxe7 {[%emt 0:00:46]} 10. Nxd5 {[%emt 0:04:30]} exd5 {[%emt 0:00:31]} 11. Qc2 {[%emt 0:01:45]} Nd7 {[%emt 0:04:18]} 12. Bd3 {[%emt 0:03:20]} Nf6 {[%emt 0:00:36]} 13. O-O {[%emt 0:06:31]} h6 {[%emt 0:02:37] D61: Queen's Gambit Declined: Classical: 7 Qc2} (13... Ne4 14. Nd2 Bf5 15. Nxe4 Bxe4 16. Bxe4 Qxe4 17. Qxe4 dxe4 18. Rfc1 Rfd8 19. Rc5 f6 20. h4 Kf7 21. g4 Rd6 {1-0 (42) Deviatkin,A (2577)-Vaibhav,S (2485) Mumbai 2012}) 14. a3 {[%emt 0:02:53]} Be6 {[%emt 0:04:49]} 15. b4 $146 {[%emt 0:02:34]} ({Predecessor:} 15. Ne5 Ng4 16. Nxg4 Bxg4 17. Bf5 {½-½ (16) Zupcevic,S-Lorenz,G Nickenich 1996}) 15... Rfc8 {[%emt 0:02:47]} 16. Rfc1 {[%emt 0:12:51]} Nd7 {[%emt 0:09:35]} 17. Qb2 {[%emt 0:03:44]} a6 {[%emt 0:04:32]} 18. a4 {[%emt 0:05:32]} Nb6 {[%emt 0:05:51]} 19. Nd2 {[%emt 0:11:02]} Nd7 {[%emt 0:11:06]} 20. b5 {[%emt 0:04:55]} axb5 {[%emt 0:05:19]} 21. axb5 {[%emt 0:00:53]} c5 {[%emt 0:00:27]} 22. Rxa8 {[%emt 0:04:31]} Rxa8 {[%emt 0:00:22]} 23. dxc5 {[%emt 0:00:55]} Nxc5 {[%emt 0:00:45]} 24. Be2 {[%emt 0:05:21]} b6 {[%emt 0:04:03]} 25. h3 {[%emt 0:01:51]} Qg5 {[%emt 0:01:14]} 26. Nf3 {[%emt 0:01:31]} Qg6 {[%emt 0:02:55]} 27. Kh1 {[%emt 0:01:38]} Ne4 {[%emt 0:03:16]} 28. Bf1 {[%emt 0:03:10]} Rc8 {[%emt 0:07:40]} (28... d4 $11 {remains equal.} 29. Ne5 (29. Nxd4 Ra2 $11) 29... Qf6 30. Qxd4 Nxf2+ 31. Kh2 Rd8) 29. Rxc8+ {[%emt 0:08:30]} Bxc8 {[%emt 0:00:01]} 30. Nd4 {[%emt 0:04:58]} Qf6 {[%emt 0:00:19]} 31. Kg1 {[%emt 0:01:01]} Bb7 {[%emt 0:02:06]} 32. Qc2 {[%emt 0:01:27]} Qd6 $14 {[%emt 0:01:14]} 33. Bd3 {[%emt 0:01:17]} Nf6 {[%emt 0:00:49]} 34. Qa4 {[%emt 0:00:41]} Nd7 {[%emt 0:04:32]} 35. Qa7 {[%emt 0:00:41]} Nc5 {[%emt 0:00:18]} 36. Bc2 {[%emt 0:00:24]} g6 {[%emt 0:00:19]} 37. Nb3 {[%emt 0:00:20]} Nxb3 {[%emt 0:01:04]} 38. Bxb3 {[%emt 0:00:23]} Qc7 {[%emt 0:00:23]} 39. g3 {[%emt 0:00:50]} d4 {[%emt 0:00:17]} 0-1

[Event "HUN-chT Youth 2019"]
[Site "Budapest"]
[Date "2019.10.27"]
[Round "2.11"]
[White "Karacsonyi, Luca"]
[Black "Molnar, Dalma Reka"]
[Result "1-0"]
[ECO "C55"]
[WhiteElo "1556"]
[BlackElo "1088"]
[Annotator "NA RC"]
[PlyCount "81"]
[EventDate "2019.10.26"]
[EventType "team-tourn"]
[EventCountry "HUN"]
[SourceTitle "playchess.com"]
[Source "ChessBase"]
[SourceQuality "1"]
[TimeControl "5400+30"]

1. e4 {[%emt 0:00:00]} e5 {[%emt 0:00:00]} 2. Nf3 {[%emt 0:00:00]} Nc6 {[%emt 0:00:00]} 3. Bc4 {[%emt 0:00:00]} Nf6 {[%emt 0:00:08]} 4. d3 {[%emt 0:00:00]} Be7 {[%emt 0:00:54]} 5. c3 {[%emt 0:00:11]} O-O {[%emt 0:00:11]} 6. Bb3 {[%emt 0:00:10]} d6 {[%emt 0:01:06]} 7. Nbd2 {[%emt 0:00:28]} Be6 {[%emt 0:01:16]} 8. Bc2 {[%emt 0:00:11]} d5 {[%emt 0:01:23]} 9. Qe2 {[%emt 0:06:43]} dxe4 {[%emt 0:02:34]} 10. Nxe4 {[%emt 0:03:42]} Nxe4 {[%emt 0:01:03]} 11. dxe4 {[%emt 0:03:56]} Bd6 {[%emt 0:01:45]} 12. O-O {[%emt 0:00:26]} Qe7 {[%emt 0:00:15]} 13. Be3 {[%emt 0:01:33]} f5 {[%emt 0:01:38]} 14. Bg5 {[%emt 0:04:03]} Qe8 {[%emt 0:01:29]} 15. exf5 {[%emt 0:03:15]} Bxf5 {[%emt 0:00:16]} 16. Qc4+ {[%emt 0:00:58]} Kh8 {[%emt 0:01:11]} 17. Bxf5 {[%emt 0:02:04]} Rxf5 {[%emt 0:00:20]} 18. Rfe1 {[%emt 0:01:50]} Qh5 {[%emt 0:01:56]} 19. Qh4 {[%emt 0:01:25]} Qf7 {[%emt 0:00:21]} 20. Rad1 {[%emt 0:06:15]} Re8 {[%emt 0:02:04]} 21. Qe4 {[%emt 0:03:04]} Re6 {[%emt 0:02:55]} 22. Be3 {[%emt 0:11:37]} Be7 {[%emt 0:02:43]} 23. Rd7 {[%emt 0:03:22]} Qh5 {[%emt 0:02:03]} 24. Rxc7 {[%emt 0:07:57]} Rg6 {[%emt 0:02:14]} 25. Kh1 {[%emt 0:02:57]} Rg4 {[%emt 0:07:07]} 26. Qd5 {[%emt 0:02:50]} h6 {[%emt 0:02:33]} 27. Qd1 {[%emt 0:05:21]} e4 {[%emt 0:03:31]} 28. Nd4 {[%emt 0:00:44]} Rf6 {[%emt 0:02:32]} 29. Nxc6 {[%emt 0:04:06]} bxc6 {[%emt 0:03:38]} 30. Rxe7 {[%emt 0:00:38]} Qg6 {[%emt 0:02:11]} 31. Rg1 {[%emt 0:01:24]} Rf5 {[%emt 0:01:21]} 32. Qd8+ {[%emt 0:01:04]} Kh7 {[%emt 0:00:17]} 33. Re8 {[%emt 0:00:56]} Qh5 {[%emt 0:01:00]} 34. Rh8+ {[%emt 0:00:14]} Kg6 {[%emt 0:00:13]} 35. Qe8+ {[%emt 0:01:20]} Kf6 {[%emt 0:01:35]} 36. Rf8+ {[%emt 0:00:32]} Qf7 {[%emt 0:00:50]} 37. Qxf7+ {[%emt 0:00:20]} Ke5 {[%emt 0:00:14]} 38. Qxf5+ {[%emt 0:00:09]} Kd6 {[%emt 0:00:32]} 39. Rd8+ {[%emt 0:00:03]} Ke7 {[%emt 0:00:42]} 40. Rd7+ {[%emt 0:00:17]} Ke8 {[%emt 0:00:13]} 41. Qf7# {[%emt 0:00:10]} 1-0

[Event "HUN-chT Youth 2019"]
[Site "Budapest"]
[Date "2019.10.27"]
[Round "2.13"]
[White "Szarka, Tibor"]
[Black "Markus, Molli Amina"]
[Result "1/2-1/2"]
[ECO "C01"]
[WhiteElo "1469"]
[BlackElo "1614"]
[Annotator "NA RC"]
[PlyCount "63"]
[EventDate "2019.10.26"]
[EventType "team-tourn"]
[EventCountry "HUN"]
[SourceTitle "playchess.com"]
[Source "ChessBase"]
[SourceQuality "1"]
[TimeControl "5400+30"]

1. e4 {[%emt 0:00:00]} e6 {[%emt 0:00:05]} 2. d4 {[%emt 0:00:20]} d5 {[%emt 0:00:44]} 3. exd5 {[%emt 0:00:49]} exd5 {[%emt 0:00:20]} 4. Nf3 {[%emt 0:00:43]} Nf6 {[%emt 0:01:08]} 5. Bd3 {[%emt 0:01:07]} Bg4 {[%emt 0:01:48]} 6. h3 {[%emt 0:01:08]} Bh5 {[%emt 0:00:47]} 7. Nbd2 {[%emt 0:01:27]} Bd6 {[%emt 0:01:49]} 8. O-O {[%emt 0:00:29]} O-O {[%emt 0:00:19]} 9. Re1 {[%emt 0:00:58]} Nc6 {[%emt 0:06:24]} 10. c3 {[%emt 0:03:17]} Qd7 {[%emt 0:02:44]} 11. Be2 {[%emt 0:07:56]} Bg6 {[%emt 0:04:54]} 12. Nf1 {[%emt 0:06:46]} Rfe8 {[%emt 0:02:11]} 13. Be3 {[%emt 0:01:44]} Ne4 {[%emt 0:01:20]} 14. Bb5 {[%emt 0:02:20]} a6 {[%emt 0:01:35]} 15. Ba4 {[%emt 0:01:35]} b5 {[%emt 0:03:37]} 16. Bb3 {[%emt 0:01:49]} Ne7 {[%emt 0:01:19]} 17. Nh4 {[%emt 0:05:27]} c6 {[%emt 0:01:57]} 18. Bc2 {[%emt 0:04:41]} Nf5 {[%emt 0:07:56]} 19. Nxg6 {[%emt 0:04:09]} hxg6 {[%emt 0:02:07]} 20. Qg4 {[%emt 0:07:05]} Rad8 {[%emt 0:04:47]} 21. Bf4 {[%emt 0:03:14]} Bxf4 {[%emt 0:03:37]} 22. Qxf4 {[%emt 0:00:25]} Nfd6 {[%emt 0:01:31]} 23. Bxe4 {[%emt 0:01:49]} Nxe4 {[%emt 0:01:25]} 24. f3 {[%emt 0:09:36]} Nd6 {[%emt 0:01:44]} 25. Nd2 {[%emt 0:02:32]} Nb7 {[%emt 0:05:38]} 26. Nb3 {[%emt 0:07:08]} Re7 {[%emt 0:09:20]} 27. Rxe7 {[%emt 0:01:40]} Qxe7 {[%emt 0:00:07]} 28. Kf1 {[%emt 0:00:46]} Re8 {[%emt 0:00:59]} 29. Qd2 {[%emt 0:00:33]} Qd7 {[%emt 0:02:57]} 30. a4 {[%emt 0:02:02]} Qc7 {[%emt 0:03:26]} 31. axb5 {[%emt 0:00:41]} axb5 {[%emt 0:00:07]} 32. Ra7 {[%emt 0:03:00]} 1/2-1/2